fUSD/lending_fUSD_20240915
["ID","MTS","AMOUNT","RATE_DAILY","PERIOD"]
[338211177,1726386672941,-2030.25,0.0001388,2]
[338211178,1726386672951,-500.0,0.0001388,2]
[338211179,1726386672960,-500.38,0.0001388,2]
[338211180,1726386672970,-575.23,0.0001388,2]
[338211181,1726386672979,-2008.53,0.0001388,2]
[338211182,1726386672989,-1137.78,0.0001388,2]
[338211183,1726386672998,-500.0,0.0001388,2]
[338211184,1726386673007,-500.0,0.0001388,2]
[338211185,1726386673017,-1054.24,0.0001388,2]
[338211186,1726386673026,-2180.97,0.0001388,2]
[338211187,1726386673035,-500.0,0.0001388,2]
[338211188,1726386673044,-1000.0,0.0001388,2]
[338211189,1726386673054,-500.0,0.0001388,2]
[338211190,1726386673063,-700.0,0.0001388,2]
[338211191,1726386673073,-500.0,0.0001388,2]
[338211192,1726386673082,-1756.97,0.0001388,2]
[338211193,1726386673091,-1322.99,0.0001388,2]
[338211194,1726386673101,-1771.35,0.0001388,2]
[338211195,1726386673110,-1097.13,0.0001388,2]
[338211196,1726386673119,-346.372401,0.0001388,2]
[338211197,1726386673129,-1068.8,0.0001388,2]
[338211198,1726386673138,-1079.61,0.0001388,2]
[338211199,1726386673147,-1921.61,0.0001388,2]
[338211200,1726386673156,-346.372401,0.0001388,2]
[338211201,1726386673165,-1745.7,0.0001388,2]
[338211202,1726386673174,-500.0,0.0001388,2]
[338211203,1726386673183,-1048.03,0.0001388,2]
[338211204,1726386673193,-500.0,0.0001388,2]
[338211205,1726386673202,-809.48,0.0001388,2]
[338211206,1726386673211,-642.2,0.0001388,2]
[338211207,1726386673221,-1530.88,0.0001388,2]
[338211208,1726386673230,-1722.16,0.0001388,2]
[338211209,1726386673239,-500.0,0.0001388,2]
[338211210,1726386673249,-707.09,0.0001388,2]
[338211211,1726386673259,-1141.18,0.0001388,2]
[338211212,1726386673268,-500.0,0.0001388,2]
[338211213,1726386673278,-500.0,0.0001388,2]
[338211214,1726386673287,-1303.63,0.0001388,2]
[338211215,1726386673297,-1272.51,0.0001388,2]
[338211216,1726386673306,-1822.8,0.0001388,2]
[338211217,1726386673316,-500.0,0.0001388,2]
[338211218,1726386673325,-2551.42,0.0001388,2]
[338211219,1726386673335,-500.0,0.0001388,2]
[338211220,1726386673344,-500.0,0.0001388,2]
[338211221,1726386673354,-1331.23,0.0001388,2]
[338211222,1726386673363,-2407.69,0.0001388,2]
[338211223,1726386673372,-500.0,0.0001388,2]
[338211224,1726386673381,-819.66,0.0001388,2]
[338211225,1726386673391,-585.16,0.0001388,2]
[338211226,1726386673400,-923.56,0.0001388,2]
[338211227,1726386673410,-500.0,0.0001388,2]
[338211228,1726386673420,-3739.75,0.0001388,2]
[338211229,1726386673430,-645.21,0.0001388,2]
[338211230,1726386673440,-500.0,0.0001388,2]
[338211231,1726386673451,-500.0,0.0001388,2]
[338211232,1726386673460,-1112.04,0.0001388,2]
[338211233,1726386673470,-593.76,0.0001388,2]
[338211234,1726386673479,-500.0,0.0001388,2]
[338211235,1726386673489,-1679.43,0.0001388,2]
[338211236,1726386673499,-1331.71,0.0001388,2]
[338211237,1726386673508,-1682.35,0.0001388,2]
[338211238,1726386673517,-1081.85,0.0001388,2]
[338211239,1726386673526,-500.0,0.0001388,2]
[338211240,1726386673536,-1202.52,0.0001388,2]
[338211241,1726386673545,-500.0,0.0001388,2]
[338211242,1726386673555,-896.4,0.0001388,2]
[338211243,1726386673564,-500.0,0.0001388,2]
[338211244,1726386673574,-820.29,0.0001388,2]
[338211245,1726386673584,-500.0,0.0001388,2]
[338211246,1726386673596,-500.0,0.0001388,2]
[338211247,1726386673606,-1736.63,0.0001388,2]
[338211248,1726386673616,-500.0,0.0001388,2]
[338211249,1726386673625,-1646.47,0.0001388,2]
[338211250,1726386673635,-500.0,0.0001388,2]
[338211251,1726386673645,-1277.04,0.0001388,2]
[338211252,1726386673654,-500.0,0.0001388,2]
[338211253,1726386673665,-1253.7,0.0001388,2]
[338211254,1726386673675,-1552.97,0.0001388,2]
[338211255,1726386673684,-500.0,0.0001388,2]
[338211256,1726386673694,-875.0,0.0001388,2]
[338211257,1726386673704,-1193.43,0.0001388,2]
[338211258,1726386673713,-500.0,0.0001388,2]
[338211259,1726386673723,-655.93,0.0001388,2]
[338211260,1726386673733,-665.56,0.0001388,2]
[338211261,1726386673743,-740.38,0.0001388,2]
[338211262,1726386673755,-500.0,0.0001388,2]
[338211263,1726386673764,-824.47,0.0001388,2]
[338211264,1726386673774,-702.34,0.0001388,2]
[338211265,1726386673784,-500.0,0.0001388,2]
[338211266,1726386673794,-591.05,0.0001388,2]
[338211267,1726386673803,-1735.51,0.0001388,2]
[338211268,1726386673812,-500.0,0.0001388,2]
[338211269,1726386673822,-3203.15,0.0001388,2]
[338211270,1726386673831,-1729.91,0.0001388,2]
[338211271,1726386673841,-573.4,0.0001388,2]
[338211272,1726386673850,-500.0,0.0001388,2]
[338211273,1726386673860,-1659.93,0.0001388,2]
[338211274,1726386673870,-500.0,0.0001388,2]
[338211275,1726386673880,-636.82,0.0001388,2]
[338211276,1726386673889,-557.85,0.0001388,2]
[338211277,1726386673899,-1330.31,0.0001388,2]
[338211278,1726386673908,-1288.74,0.0001388,2]
[338211279,1726386673918,-500.0,0.0001388,2]
[338211280,1726386673927,-2152.07,0.0001388,2]
[338211281,1726386673937,-746.29,0.0001388,2]
[338211282,1726386673947,-500.0,0.0001388,2]
[338211283,1726386673956,-719.82,0.0001388,2]
[338211284,1726386673966,-500.0,0.0001388,2]
[338211285,1726386673975,-500.0,0.0001388,2]
[338211286,1726386673984,-38355.61,0.0001388,2]
[338211287,1726386673994,-1048.89,0.0001388,2]
[338211288,1726386674004,-3992.45,0.0001388,2]
[338211289,1726386674014,-500.0,0.0001388,2]
[338211290,1726386674024,-777.89,0.0001388,2]
[338211291,1726386674035,-500.0,0.0001388,2]
[338211292,1726386674044,-1857.01,0.0001388,2]
[338211293,1726386674055,-721.79,0.0001388,2]
[338211294,1726386674067,-500.0,0.0001388,2]
[338211295,1726386674076,-500.0,0.0001388,2]
[338211296,1726386674086,-1741.68,0.0001388,2]
[338211297,1726386674095,-1450.58,0.0001388,2]
[338211298,1726386674105,-1817.29,0.0001388,2]
[338211299,1726386674115,-529.93,0.0001388,2]
[338211300,1726386674125,-1382.77,0.0001388,2]
[338211301,1726386674135,-500.0,0.0001388,2]
[338211302,1726386674145,-522.77,0.0001388,2]
[338211303,1726386674155,-2904.12,0.0001388,2]
[338211304,1726386674165,-500.0,0.0001388,2]
[338211305,1726386674175,-772.62,0.0001388,2]
[338211306,1726386674185,-500.0,0.0001388,2]
[338211307,1726386674195,-872.52,0.0001388,2]
[338211308,1726386674204,-1830.5,0.0001388,2]
[338211309,1726386674214,-655.06,0.0001388,2]
[338211310,1726386674224,-744.46,0.0001388,2]
[338211311,1726386674234,-694.99,0.0001388,2]
[338211312,1726386674244,-1096.99,0.0001388,2]
[338211313,1726386674254,-760.02,0.0001388,2]
[338211314,1726386674263,-500.0,0.0001388,2]
[338211315,1726386674273,-151.0,0.0001388,2]
[338211316,1726386674283,-651.42,0.0001388,2]
[338211317,1726386674293,-906.05,0.0001388,2]
[338211318,1726386674303,-1788.79,0.0001388,2]
[338211319,1726386674312,-500.0,0.0001388,2]
[338211320,1726386674323,-500.0,0.0001388,2]
[338211321,1726386674333,-519.58,0.0001388,2]
[338211322,1726386674343,-500.0,0.0001388,2]
[338211323,1726386674353,-668.39,0.0001388,2]
[338211324,1726386674362,-1669.84,0.0001388,2]
[338211325,1726386674372,-500.0,0.0001388,2]
[338211326,1726386674382,-991.26,0.0001388,2]
[338211327,1726386674391,-825.92,0.0001388,2]
[338211328,1726386674401,-2051.03,0.0001388,2]
[338211329,1726386674413,-805.04,0.0001388,2]
[338211330,1726386674423,-2617.08,0.0001388,2]
[338211331,1726386674433,-4635.5,0.0001388,2]
[338211332,1726386674442,-500.0,0.0001388,2]
[338211333,1726386674453,-151.0,0.0001388,2]
[338211334,1726386674462,-1635.85,0.0001388,2]
[338211335,1726386674471,-1880.08,0.0001388,2]
[338211336,1726386674481,-1646.13,0.0001388,2]
[338211337,1726386674490,-500.0,0.0001388,2]
[338211338,1726386674500,-574.03,0.0001388,2]
[338211339,1726386674510,-535.64,0.0001388,2]
[338211340,1726386674519,-759.97,0.0001388,2]
[338211341,1726386674529,-500.0,0.0001388,2]
[338211342,1726386674538,-500.0,0.0001388,2]
[338211343,1726386674548,-1910.72,0.0001388,2]
[338211344,1726386674558,-500.0,0.0001388,2]
[338211345,1726386674567,-830.47,0.0001388,2]
[338211346,1726386674577,-845.48,0.0001388,2]
[338211347,1726386674587,-540.36,0.0001388,2]
[338211348,1726386674598,-790.72,0.0001388,2]
[338211349,1726386674608,-500.0,0.0001388,2]
[338211350,1726386674618,-500.0,0.0001388,2]
[338211351,1726386674629,-615.12,0.0001388,2]
[338211352,1726386674639,-1339.68,0.0001388,2]
[338211353,1726386674649,-732.76,0.0001388,2]
[338211354,1726386674849,-500.0,0.0001388,2]
[338211355,1726386674865,-2517.19,0.0001388,2]
[338211356,1726386674875,-500.0,0.0001388,2]
[338211357,1726386674884,-1116.19,0.0001388,2]
[338211358,1726386674894,-1753.92,0.0001388,2]
[338211359,1726386674904,-151.0,0.0001388,2]
[338211360,1726386674913,-3262.83,0.0001388,2]
[338211361,1726386674923,-500.0,0.0001388,2]
[338211362,1726386674933,-2139.07,0.0001388,2]
[338211363,1726386674942,-500.0,0.00013881,2]
[338211364,1726386674953,-500.0,0.00013881,2]
[338211365,1726386674963,-986.14,0.00013881,2]
[338211366,1726386674973,-500.0,0.00013881,2]
[338211367,1726386674982,-1104.91,0.00013881,2]
[338211368,1726386674993,-603.64,0.00013881,2]
[338211369,1726386675003,-1291.31,0.00013881,2]
[338211370,1726386675013,-1489.25,0.00013881,2]
[338211371,1726386675023,-1214.79,0.00013881,2]
[338211372,1726386675033,-644.7,0.00013881,2]
[338211373,1726386675043,-734.64,0.00013881,2]
[338211374,1726386675052,-604.37,0.00013881,2]
[338211375,1726386675062,-1322.72,0.00013881,2]
[338211376,1726386675071,-500.0,0.00013881,2]
[338211377,1726386675082,-706.96,0.00013881,2]
[338211378,1726386675092,-819.4,0.00013881,2]
[338211379,1726386675102,-1793.07,0.00013881,2]
[338211380,1726386675112,-2382.64,0.00013881,2]
[338211381,1726386675122,-500.0,0.00013881,2]
[338211382,1726386675131,-559.68,0.00013881,2]
[338211383,1726386675141,-2812.38,0.00013881,2]
[338211384,1726386675150,-1215.38,0.00013881,2]
[338211385,1726386675160,-886.59,0.00013881,2]
[338211386,1726386675169,-1390.11,0.00013881,2]
[338211387,1726386675179,-1865.48,0.00013881,2]
[338211388,1726386675187,-1240.08,0.00013881,2]
[338211389,1726386675197,-1091.54,0.00013881,2]
[338211390,1726386675207,-986.87,0.00013881,2]
[338211391,1726386675218,-618.57,0.00013881,2]
[338211392,1726386675227,-532.18,0.00013881,2]
[338211393,1726386675237,-2204.89,0.00013881,2]
[338211394,1726386675247,-500.0,0.00013881,2]
[338211395,1726386675257,-1196.34,0.00013881,2]
[338211396,1726386675267,-1877.34,0.00013881,2]
[338211397,1726386675276,-1544.19,0.00013881,2]
[338211398,1726386675286,-1642.31,0.00013881,2]
[338211399,1726386675298,-500.0,0.00013881,2]
[338211400,1726386675308,-2122.82,0.00013881,2]
[338211401,1726386675318,-500.0,0.00013881,2]
[338211402,1726386675327,-1235.92,0.00013881,2]
[338211403,1726386675337,-500.0,0.00013881,2]
[338211404,1726386675347,-1744.99,0.00013881,2]
[338211405,1726386675357,-2206.82,0.00013881,2]
[338211406,1726386675366,-2524.23,0.00013881,2]
[338211407,1726386675376,-500.0,0.00013881,2]
[338211408,1726386675386,-500.0,0.00013881,2]
[338211409,1726386675395,-2100.75,0.00013881,2]
[338211410,1726386675406,-2501.11,0.00013881,2]
[338211411,1726386675416,-846.95,0.00013881,2]
[338211412,1726386675425,-539.57,0.00013881,2]
[338211413,1726386675435,-1470.93,0.00013881,2]
[338211414,1726386675445,-3358.33,0.00013881,2]
[338211415,1726386675463,-561.13,0.00013882,2]
[338211416,1726386675472,-2011.23,0.00013882,2]
[338211417,1726386675481,-2475.01,0.00013882,2]
[338211418,1726386675491,-500.0,0.00013882,2]
[338211419,1726386675501,-677.73,0.00013882,2]
[338211420,1726386675511,-1367.57,0.00013882,2]
[338211421,1726386675520,-1772.7,0.00013882,2]
[338211422,1726386675529,-1342.24,0.00013882,2]
[338211423,1726386675539,-613.39,0.00013882,2]
[338211424,1726386675549,-3121.53,0.00013882,2]
[338211425,1726386675558,-1530.95158959,0.00013898,2]
[338211426,1726386675568,-232.4367,0.000139,2]
[338211427,1726386675577,-232.4367,0.000139,2]
[338211428,1726386675588,-400.0,0.000139,5]
[338211429,1726386675599,-4134.2929568,0.000139,2]
[338211430,1726386675608,-150.0,0.00013906,2]
[338211431,1726386675617,-150.0,0.00013912,2]
[338211432,1726386675626,-150.0,0.00013914,2]
[338211433,1726386675635,-150.0,0.00013916,2]
[338211434,1726386675645,-150.0,0.00013917,2]
[338211435,1726386675654,-150.0,0.00013918,2]
[338211436,1726386675663,-150.0,0.00013928,2]
[338211437,1726386675673,-150.0,0.00013931,2]
[338211438,1726386675682,-150.0,0.00013938,2]
[338211439,1726386675691,-150.0,0.00013939,2]
[338211440,1726386675705,-150.0,0.00013939,2]
[338211441,1726386675715,-150.0,0.00013942,2]
[338211442,1726386675724,-150.0,0.00013945,2]
[338211443,1726386675733,-150.0,0.00013945,2]
[338211444,1726386675743,-150.0,0.00013954,2]
[338211445,1726386675752,-150.0,0.0001396,2]
[338211446,1726386675762,-150.0,0.00013961,2]
[338211447,1726386675771,-150.0,0.00013962,2]
[338211448,1726386675780,-184.03,0.00013964,2]
[338211449,1726386675790,-150.0,0.00013964,2]
[338211450,1726386675799,-150.0,0.00013971,2]
[338211451,1726386675808,-150.0,0.00013972,2]
[338211452,1726386675817,-223.565525,0.00013973,2]
[338211453,1726386675827,-150.0,0.00013975,2]
[338211454,1726386675836,-150.0,0.00013978,2]
[338211455,1726386675845,-150.0,0.00013979,2]
[338211456,1726386675854,-150.0,0.00013981,2]
[338211457,1726386675864,-561.98,0.00013982,2]
[338211458,1726386675874,-500.0,0.00013982,2]
[338211459,1726386675885,-500.0,0.00013982,2]
[338211460,1726386675894,-500.0,0.00013982,2]
[338211461,1726386675904,-1436.51,0.00013982,2]
[338211462,1726386675914,-500.0,0.00013982,2]
[338211463,1726386675923,-928.51,0.00013982,2]
[338211464,1726386675934,-842.4,0.00013982,2]
[338211465,1726386675945,-500.0,0.00013982,2]
[338211466,1726386675954,-1164.17,0.00013982,2]
[338211467,1726386675963,-645.17,0.00013982,2]
[338211468,1726386675972,-500.0,0.00013982,2]
[338211469,1726386675982,-639.18,0.00013982,2]
[338211470,1726386675993,-500.0,0.00013982,2]
[338211471,1726386676003,-591.77,0.00013982,2]
[338211472,1726386676014,-500.0,0.00013982,2]
[338211473,1726386676024,-602.89,0.00013982,2]
[338211474,1726386676034,-1098.11,0.00013982,2]
[338211475,1726386676045,-500.0,0.00013982,2]
[338211476,1726386676056,-715.1,0.00013982,2]
[338211477,1726386676065,-952.96,0.00013982,2]
[338211478,1726386676077,-1104.7,0.00013982,2]
[338211479,1726386676087,-621.97,0.00013982,2]
[338211480,1726386676097,-562.73,0.00013982,2]
[338211481,1726386676106,-500.0,0.00013982,2]
[338211482,1726386676115,-708.31,0.00013982,2]
[338211483,1726386676125,-665.16,0.00013982,2]
[338211484,1726386676136,-500.0,0.00013982,2]
[338211485,1726386676145,-500.0,0.00013982,2]
[338211486,1726386676155,-500.0,0.00013982,2]
[338211487,1726386676165,-500.0,0.00013982,2]
[338211488,1726386676175,-1124.15,0.00013982,2]
[338211489,1726386676185,-1571.64,0.00013982,2]
[338211490,1726386676195,-1574.41,0.00013982,2]
[338211491,1726386676204,-600.39,0.00013982,2]
[338211492,1726386676214,-281.36237786,0.00013982,2]
[338211493,1726386676223,-708.84,0.00013982,2]
[338211494,1726386676232,-720.71,0.00013982,2]
[338211495,1726386676242,-500.0,0.00013982,2]
[338211496,1726386676251,-500.0,0.00013982,2]
[338211497,1726386676261,-650.12,0.00013982,2]
[338211498,1726386676270,-500.0,0.00013982,2]
[338211499,1726386676280,-500.0,0.00013982,2]
[338211500,1726386676289,-1249.23,0.00013982,2]
[338211501,1726386676299,-500.0,0.00013982,2]
[338211502,1726386676308,-500.0,0.00013982,2]
[338211503,1726386676318,-500.0,0.00013982,2]
[338211504,1726386676327,-708.48,0.00013982,2]
[338211505,1726386676336,-802.37,0.00013982,2]
[338211506,1726386676346,-639.47,0.00013982,2]
[338211507,1726386676355,-556.09,0.00013982,2]
[338211508,1726386676365,-500.0,0.00013982,2]
[338211509,1726386676375,-500.0,0.00013982,2]
[338211510,1726386676385,-527.26,0.00013982,2]
[338211511,1726386676394,-500.0,0.00013982,2]
[338211512,1726386676403,-1066.93,0.00013982,2]
[338211513,1726386676413,-646.44,0.00013982,2]
[338211514,1726386676430,-1656.57,0.00013982,2]
[338211515,1726386676440,-763.97,0.00013982,2]
[338211516,1726386676451,-1411.55,0.00013982,2]
[338211517,1726386676461,-500.0,0.00013982,2]
[338211518,1726386676471,-500.0,0.00013982,2]
[338211519,1726386676480,-500.0,0.00013982,2]
[338211520,1726386676490,-550.13,0.00013982,2]
[338211521,1726386676499,-500.0,0.00013982,2]
[338211522,1726386676509,-500.0,0.00013982,2]
[338211523,1726386676518,-546.41,0.00013982,2]
[338211524,1726386676528,-500.0,0.00013982,2]
[338211525,1726386676537,-337.57430503,0.00013982,2]
[338211526,1726386676546,-1742.19,0.00013982,2]
[338211527,1726386676556,-563.77,0.00013982,2]
[338211528,1726386676566,-500.0,0.00013982,2]
[338211529,1726386676575,-500.0,0.00013982,2]
[338211530,1726386676585,-500.0,0.00013982,2]
[338211531,1726386676804,-500.0,0.00013982,2]
[338211532,1726386676814,-500.0,0.00013982,2]
[338211533,1726386676823,-500.0,0.00013982,2]
[338211534,1726386676832,-500.0,0.00013982,2]
[338211535,1726386676842,-500.0,0.00013982,2]
[338211536,1726386676852,-574.37,0.00013982,2]
[338211537,1726386676861,-1322.16,0.00013982,2]
[338211538,1726386676871,-1524.68,0.00013982,2]
[338211539,1726386676880,-722.53,0.00013982,2]
[338211540,1726386676890,-1451.07,0.00013982,2]
[338211541,1726386676899,-724.0,0.00013982,2]
[338211542,1726386676909,-1263.3,0.00013982,2]
[338211543,1726386676919,-500.0,0.00013982,2]
[338211544,1726386676928,-831.32,0.00013982,2]
[338211545,1726386676938,-500.0,0.00013982,2]
[338211546,1726386676947,-1412.73,0.00013982,2]
[338211547,1726386676956,-535.97,0.00013982,2]
[338211548,1726386676966,-762.35,0.00013982,2]
[338211549,1726386676976,-592.82,0.00013982,2]
[338211550,1726386676986,-500.0,0.00013982,2]
[338211551,1726386676996,-150.0,0.00013982,2]
[338211552,1726386677007,-500.0,0.00013982,2]
[338211553,1726386677016,-1356.7,0.00013982,2]
[338211554,1726386677025,-698.9,0.00013982,2]
[338211555,1726386677035,-1023.51,0.00013982,2]
[338211556,1726386677045,-500.0,0.00013982,2]
[338211557,1726386677054,-654.13,0.00013982,2]
[338211558,1726386677064,-500.0,0.00013982,2]
[338211559,1726386677074,-500.0,0.00013982,2]
[338211560,1726386677083,-805.52,0.00013982,2]
[338211561,1726386677094,-500.0,0.00013982,2]
[338211562,1726386677103,-500.0,0.00013982,2]
[338211563,1726386677113,-545.85,0.00013982,2]
[338211564,1726386677122,-500.0,0.00013982,2]
[338211565,1726386677131,-995.8,0.00013982,2]
[338211566,1726386677141,-1242.26,0.00013982,2]
[338211567,1726386677150,-150.0,0.00013983,2]
[338211568,1726386677160,-150.0,0.00013988,2]
[338211569,1726386677170,-150.0,0.00013992,2]
[338211570,1726386677179,-150.0,0.00013993,2]
[338211571,1726386677189,-150.0,0.00013993,2]
[338211572,1726386677199,-150.0,0.00013993,2]
[338211573,1726386677209,-150.0,0.00013994,2]
[338211574,1726386677218,-150.0,0.00013996,2]
[338211575,1726386677229,-150.0,0.00013997,2]
[338211576,1726386677238,-150.0,0.00013997,2]
[338211577,1726386677248,-150.0,0.00013998,2]
[338211578,1726386677258,-150.0,0.00014,5]
[338211579,1726386677268,-1000.0,0.00014,2]
[338211580,1726386677277,-150.0,0.00014002,2]
[338211581,1726386677287,-150.0,0.00014004,2]
[338211582,1726386677297,-150.0,0.00014006,2]
[338211583,1726386677307,-150.0,0.00014006,2]
[338211584,1726386677316,-150.0,0.00014008,2]
[338211585,1726386677326,-150.0,0.00014008,2]
[338211586,1726386677336,-150.0,0.00014015,2]
[338211587,1726386677345,-1500.0,0.00014018,2]
[338211588,1726386677355,-1500.0,0.00014019,2]
[338211589,1726386677365,-420.0,0.0001402,2]
[338211590,1726386677375,-150.0,0.00014021,2]
[338211591,1726386677384,-150.0,0.00014024,2]
[338211592,1726386677395,-150.0,0.00014024,2]
[338211593,1726386677405,-150.0,0.00014029,2]
[338211594,1726386677414,-150.0,0.00014031,2]
[338211595,1726386677424,-152.0,0.00014037,4]
[338211596,1726386677433,-150.0,0.00014037,2]
[338211597,1726386677443,-150.0,0.00014039,2]
[338211598,1726386677453,-237.03711621,0.00014041,2]
[338211599,1726386677464,-150.0,0.00014042,2]
[338211600,1726386677473,-150.0,0.00014044,2]
[338211601,1726386677483,-150.0,0.00014044,2]
[338211602,1726386677493,-150.0,0.00014047,2]
[338211603,1726386677576,-150.0,0.00014051,2]
[338211604,1726386677586,-150.0,0.00014053,2]
[338211605,1726386677598,-150.0,0.00014055,2]
[338211606,1726386677607,-150.0,0.00014057,2]
[338211607,1726386677617,-150.0,0.00014057,2]
[338211608,1726386677626,-150.0,0.00014062,2]
[338211609,1726386677636,-150.0,0.00014065,2]
[338211610,1726386677645,-150.0,0.00014067,2]
[338211611,1726386677655,-150.0,0.00014068,2]
[338211612,1726386677664,-150.0,0.00014076,2]
[338211613,1726386677674,-150.0,0.00014077,2]
[338211614,1726386677683,-150.0,0.00014079,2]
[338211615,1726386677694,-150.0,0.00014079,2]
[338211616,1726386677704,-1859.58,0.00014082,2]
[338211617,1726386677714,-1143.63,0.00014082,2]
[338211618,1726386677723,-3037.41,0.00014082,2]
[338211619,1726386677733,-2304.04,0.00014082,2]
[338211620,1726386677743,-3196.08,0.00014082,2]
[338211621,1726386677753,-752.52,0.00014082,2]
[338211622,1726386677762,-500.0,0.00014082,2]
[338211623,1726386677771,-150.0,0.00014082,2]
[338211624,1726386677781,-5529.83,0.00014082,2]
[338211625,1726386677790,-22864.29,0.00014082,2]
[338211626,1726386677799,-4100.35,0.00014082,2]
[338211627,1726386677808,-535.73,0.00014082,2]
[338211628,1726386677818,-9326.93,0.00014082,2]
[338211629,1726386677827,-1699.66,0.00014082,2]
[338211630,1726386677837,-818.44,0.00014082,2]
[338211631,1726386677847,-2372.87,0.00014082,2]
[338211632,1726386677856,-1736.72,0.00014082,2]
[338211633,1726386677865,-3142.64,0.00014082,2]
[338211634,1726386677875,-2320.73,0.00014082,2]
[338211635,1726386677884,-150.0,0.00014084,2]
[338211636,1726386677892,-150.0,0.00014093,2]
[338211637,1726386677901,-150.0,0.00014094,2]
[338211638,1726386677911,-150.0,0.00014097,2]
[338211639,1726386677921,-150.0,0.00014099,2]
[338211640,1726386677930,-158.10949927,0.000141,2]
[338211641,1726386677939,-1000.0,0.000141,2]
[338211642,1726386677949,-205.95140658,0.000141,2]
[338211643,1726386677958,-1530.95158959,0.000141,2]
[338211644,1726386677967,-150.0,0.00014101,2]
[338211645,1726386677976,-150.0,0.00014108,2]
[338211646,1726386677987,-150.0,0.00014108,2]
[338211647,1726386677996,-150.0,0.0001411,2]
[338211648,1726386678005,-150.0,0.00014116,2]
[338211649,1726386678015,-150.0,0.00014119,2]
[338211650,1726386678024,-150.0,0.0001412,2]
[338211651,1726386678035,-150.0,0.0001412,2]
[338211652,1726386678045,-150.0,0.00014121,2]
[338211653,1726386678055,-150.0,0.00014125,2]
[338211654,1726386678065,-150.0,0.00014129,2]
[338211655,1726386678076,-150.0,0.0001413,2]
[338211656,1726386678087,-150.0,0.00014134,2]
[338211657,1726386678096,-150.0,0.00014135,2]
[338211658,1726386678106,-150.0,0.00014135,2]
[338211659,1726386678116,-150.0,0.00014138,2]
[338211660,1726386678126,-1500.0,0.00014142,2]
[338211661,1726386678136,-1000.0,0.00014142,2]
[338211662,1726386678146,-150.0,0.00014145,2]
[338211663,1726386678157,-150.0,0.00014146,2]
[338211664,1726386678167,-150.0,0.00014146,2]
[338211665,1726386678177,-150.0,0.00014147,2]
[338211666,1726386678189,-150.0,0.00014149,2]
[338211667,1726386678198,-150.0,0.0001415,2]
[338211668,1726386678208,-2113.01,0.00014152,2]
[338211669,1726386678219,-2238.96,0.00014152,2]
[338211670,1726386678229,-2019.7,0.00014152,2]
[338211671,1726386678239,-586.83,0.00014152,2]
[338211672,1726386678249,-3124.91,0.00014152,2]
[338211673,1726386678259,-968.98,0.00014152,2]
[338211674,1726386678269,-2456.08,0.00014152,2]
[338211675,1726386678281,-1949.11,0.00014152,2]
[338211676,1726386678292,-1848.91,0.00014152,2]